[Event "Titled Tuesday Blitz August 08 Early 2023"]
[White "Hirneise, Jens"]
[Black "Wagner, Dennis"]
[WhiteFideId "24614734"]
[BlackFideId "24650684"]
[WhiteElo "2509"]
[BlackElo "2733"]
[Result "0-1"]
[Round "5"]
[TimeControl "180+1"]
[Date "2023.08.08"]
[WhiteClock "0:00:08"]
[BlackClock "0:00:09"]
[Board "97"]

1. c4 {[%clk 0:03:00]}  e5 {[%clk 0:02:51]} 2. Nc3 {[%clk 0:03:00]}  Nf6 {[%clk 0:02:51]} 3. d3 {[%clk 0:03:00]}  d5 {[%clk 0:02:50]} 4. cxd5 {[%clk 0:03:00]}  Nxd5 {[%clk 0:02:51]} 5. Bd2 {[%clk 0:02:58]}  Be7 {[%clk 0:02:44]} 6. Nf3 {[%clk 0:02:53]}  f6 {[%clk 0:02:43]} 7. g3 {[%clk 0:02:47]}  c5 {[%clk 0:02:42]} 8. Bg2 {[%clk 0:02:43]}  Be6 {[%clk 0:02:43]} 9. O-O {[%clk 0:02:42]}  Nc6 {[%clk 0:02:43]} 10. a3 {[%clk 0:02:33]}  O-O {[%clk 0:02:42]} 11. Rc1 {[%clk 0:02:32]}  Qd7 {[%clk 0:02:30]} 12. Ne1 {[%clk 0:02:28]}  Nc7 {[%clk 0:02:21]} 13. Nc2 {[%clk 0:02:13]}  Rac8 {[%clk 0:02:18]} 14. Ne3 {[%clk 0:02:09]}  b6 {[%clk 0:02:12]} 15. Kh1 {[%clk 0:01:59]}  Rfd8 {[%clk 0:02:11]} 16. f4 {[%clk 0:01:57]}  exf4 {[%clk 0:02:08]} 17. gxf4 {[%clk 0:01:57]}  Nd4 {[%clk 0:02:08]} 18. Qe1 {[%clk 0:01:44]}  Bh3 {[%clk 0:01:56]} 19. Qg3 {[%clk 0:01:38]}  Bxg2+ {[%clk 0:01:55]} 20. Qxg2 {[%clk 0:01:39]}  Bf8 {[%clk 0:01:52]} 21. f5 {[%clk 0:01:36]}  Kh8 {[%clk 0:01:49]} 22. Ne4 {[%clk 0:01:33]}  Nd5 {[%clk 0:01:27]} 23. Nxd5 {[%clk 0:01:09]}  Qxd5 {[%clk 0:01:28]} 24. Qg4 {[%clk 0:01:01]}  c4 {[%clk 0:01:21]} 25. Rxc4 {[%clk 0:00:50]}  Rxc4 {[%clk 0:01:18]} 26. dxc4 {[%clk 0:00:51]}  Qxc4 {[%clk 0:01:18]} 27. Bc3 {[%clk 0:00:43]}  Nxe2 {[%clk 0:00:57]} 28. Re1 {[%clk 0:00:30]}  Nxc3 {[%clk 0:00:47]} 29. bxc3 {[%clk 0:00:31]}  Bxa3 {[%clk 0:00:41]} 30. Qg2 {[%clk 0:00:30]}  Re8 {[%clk 0:00:38]} 31. Re2 {[%clk 0:00:24]}  Bf8 {[%clk 0:00:34]} 32. h3 {[%clk 0:00:18]}  a5 {[%clk 0:00:32]} 33. Re3 {[%clk 0:00:14]}  Re5 {[%clk 0:00:30]} 34. Nd2 {[%clk 0:00:13]}  Qd5 {[%clk 0:00:21]} 35. Qxd5 {[%clk 0:00:13]}  Rxd5 {[%clk 0:00:22]} 36. Re8 {[%clk 0:00:14]}  Kg8 {[%clk 0:00:22]} 37. Nc4 {[%clk 0:00:13]}  Rxf5 {[%clk 0:00:16]} 38. Nxb6 {[%clk 0:00:13]}  Rf3 {[%clk 0:00:17]} 39. Nd7 {[%clk 0:00:12]}  Kf7 {[%clk 0:00:13]} 40. Rxf8+ {[%clk 0:00:13]}  Ke7 {[%clk 0:00:14]} 41. Ra8 {[%clk 0:00:12]}  Kxd7 {[%clk 0:00:13]} 42. Ra7+ {[%clk 0:00:12]}  Ke6 {[%clk 0:00:13]} 43. Kg2 {[%clk 0:00:11]}  Rxc3 {[%clk 0:00:13]} 44. Rxg7 {[%clk 0:00:11]}  h5 {[%clk 0:00:09]} 45. Ra7 {[%clk 0:00:11]}  Rc5 {[%clk 0:00:09]} 46. Kg3 {[%clk 0:00:12]}  Kd5 {[%clk 0:00:09]} 47. Ra6 {[%clk 0:00:11]}  Kc4 {[%clk 0:00:09]} 48. Rxf6 {[%clk 0:00:11]}  a4 {[%clk 0:00:09]} 49. Ra6 {[%clk 0:00:08]}  Kb4 {[%clk 0:00:09]} 0-1


[Site "https://www.chess.com"]

[Event "Titled Tuesday Blitz August 08 Early 2023"]
[White "Skvortsov, Andrei"]
[Black "Perrine, Dalton"]
[WhiteFideId "24108600"]
[BlackFideId "2048434"]
[WhiteElo "2728"]
[BlackElo "2509"]
[Result "0-1"]
[Round "5"]
[TimeControl "180+1"]
[Date "2023.08.08"]
[WhiteClock "0:00:10"]
[BlackClock "0:00:10"]
[Board "98"]

1. f4 {[%clk 0:02:59]}  d5 {[%clk 0:02:53]} 2. Nf3 {[%clk 0:02:59]}  Bg4 {[%clk 0:02:51]} 3. Ne5 {[%clk 0:02:56]}  Bf5 {[%clk 0:02:50]} 4. g3 {[%clk 0:02:57]}  Nd7 {[%clk 0:02:50]} 5. Nf3 {[%clk 0:02:53]}  Be4 {[%clk 0:02:31]} 6. Bg2 {[%clk 0:02:53]}  e5 {[%clk 0:02:30]} 7. fxe5 {[%clk 0:02:30]}  Nxe5 {[%clk 0:02:24]} 8. O-O {[%clk 0:02:29]}  Nxf3+ {[%clk 0:02:15]} 9. exf3 {[%clk 0:02:26]}  Bg6 {[%clk 0:02:16]} 10. d4 {[%clk 0:02:21]}  Nf6 {[%clk 0:02:13]} 11. Qe2+ {[%clk 0:02:11]}  Be7 {[%clk 0:02:11]} 12. Qb5+ {[%clk 0:02:04]}  Qd7 {[%clk 0:02:11]} 13. Qxb7 {[%clk 0:02:04]}  O-O {[%clk 0:02:11]} 14. Bf4 {[%clk 0:01:34]}  Rfb8 {[%clk 0:01:53]} 15. Qxc7 {[%clk 0:01:33]}  Qxc7 {[%clk 0:01:54]} 16. Bxc7 {[%clk 0:01:34]}  Rxb2 {[%clk 0:01:52]} 17. Be5 {[%clk 0:01:25]}  Rxc2 {[%clk 0:01:42]} 18. f4 {[%clk 0:01:22]}  Be4 {[%clk 0:01:33]} 19. Rf2 {[%clk 0:01:04]}  Rxf2 {[%clk 0:01:12]} 20. Kxf2 {[%clk 0:01:03]}  Ng4+ {[%clk 0:01:13]} 21. Ke2 {[%clk 0:01:00]}  Bxg2 {[%clk 0:01:10]} 22. Nd2 {[%clk 0:00:50]}  Rc8 {[%clk 0:01:00]} 23. f5 {[%clk 0:00:50]}  Nxe5 {[%clk 0:00:39]} 24. dxe5 {[%clk 0:00:49]}  Bh3 {[%clk 0:00:40]} 25. f6 {[%clk 0:00:44]}  gxf6 {[%clk 0:00:40]} 26. exf6 {[%clk 0:00:45]}  Bxf6 {[%clk 0:00:40]} 27. Rb1 {[%clk 0:00:45]}  Rc2 {[%clk 0:00:34]} 28. Kd1 {[%clk 0:00:39]}  Rxa2 {[%clk 0:00:30]} 29. Rb8+ {[%clk 0:00:39]}  Kg7 {[%clk 0:00:29]} 30. Nb3 {[%clk 0:00:36]}  Bg4+ {[%clk 0:00:25]} 31. Kc1 {[%clk 0:00:34]}  Rb2 {[%clk 0:00:17]} 32. h4 {[%clk 0:00:29]}  a5 {[%clk 0:00:15]} 33. Rb6 {[%clk 0:00:26]}  a4 {[%clk 0:00:14]} 34. Rb4 {[%clk 0:00:24]}  h5 {[%clk 0:00:05]} 35. Rxa4 {[%clk 0:00:20]}  Rxb3 {[%clk 0:00:05]} 36. Kc2 {[%clk 0:00:21]}  Rxg3 {[%clk 0:00:06]} 37. Kd2 {[%clk 0:00:19]}  Rh3 {[%clk 0:00:06]} 38. Ra5 {[%clk 0:00:19]}  Rxh4 {[%clk 0:00:06]} 39. Rxd5 {[%clk 0:00:19]}  Rh3 {[%clk 0:00:07]} 40. Ke1 {[%clk 0:00:19]}  Rf3 {[%clk 0:00:07]} 41. Ra5 {[%clk 0:00:17]}  Kg6 {[%clk 0:00:08]} 42. Ra4 {[%clk 0:00:17]}  Rf5 {[%clk 0:00:07]} 43. Kd2 {[%clk 0:00:17]}  Kg5 {[%clk 0:00:07]} 44. Ke3 {[%clk 0:00:18]}  h4 {[%clk 0:00:08]} 45. Ra8 {[%clk 0:00:17]}  Rf3+ {[%clk 0:00:08]} 46. Ke4 {[%clk 0:00:17]}  Rf4+ {[%clk 0:00:09]} 47. Ke3 {[%clk 0:00:17]}  Bd4+ {[%clk 0:00:09]} 48. Kd3 {[%clk 0:00:18]}  Bf5+ {[%clk 0:00:09]} 49. Ke2 {[%clk 0:00:18]}  Bg6 {[%clk 0:00:09]} 50. Ra5+ {[%clk 0:00:17]}  f5 {[%clk 0:00:09]} 51. Ra6 {[%clk 0:00:16]}  h3 {[%clk 0:00:09]} 52. Ra3 {[%clk 0:00:16]}  h2 {[%clk 0:00:09]} 53. Rh3 {[%clk 0:00:17]}  Rh4 {[%clk 0:00:10]} 54. Rg3+ {[%clk 0:00:17]}  Kf6 {[%clk 0:00:10]} 55. Ra3 {[%clk 0:00:12]}  h1=Q {[%clk 0:00:09]} 56. Ra6+ {[%clk 0:00:10]}  Kg5 {[%clk 0:00:10]} 0-1


[Site "https://www.chess.com"]

[Event "Titled Tuesday Blitz August 08 Early 2023"]
[White "Perske, Thore"]
[Black "splendidkid"]
[WhiteFideId "12902195"]
[WhiteElo "2508"]
[BlackElo "2727"]
[Result "0-1"]
[Round "5"]
[TimeControl "180+1"]
[Date "2023.08.08"]
[WhiteClock "0:00:12"]
[BlackClock "0:00:16"]
[Board "99"]

1. d4 {[%clk 0:02:55]}  Nf6 {[%clk 0:01:52]} 2. g3 {[%clk 0:02:55]}  g6 {[%clk 0:01:53]} 3. Bg2 {[%clk 0:02:54]}  Bg7 {[%clk 0:01:54]} 4. e4 {[%clk 0:02:54]}  O-O {[%clk 0:01:55]} 5. Nc3 {[%clk 0:02:44]}  d6 {[%clk 0:01:55]} 6. Nge2 {[%clk 0:02:44]}  e5 {[%clk 0:01:54]} 7. h3 {[%clk 0:02:43]}  Nbd7 {[%clk 0:01:49]} 8. O-O {[%clk 0:02:42]}  b6 {[%clk 0:01:49]} 9. a4 {[%clk 0:02:35]}  a5 {[%clk 0:01:49]} 10. Be3 {[%clk 0:02:31]}  Ba6 {[%clk 0:01:47]} 11. Re1 {[%clk 0:02:29]}  Re8 {[%clk 0:01:44]} 12. Qd2 {[%clk 0:02:23]}  exd4 {[%clk 0:01:38]} 13. Bxd4 {[%clk 0:02:18]}  Nc5 {[%clk 0:01:29]} 14. Nf4 {[%clk 0:02:10]}  Bb7 {[%clk 0:01:22]} 15. Nfd5 {[%clk 0:02:05]}  Nxd5 {[%clk 0:01:06]} 16. exd5 {[%clk 0:02:01]}  Bxd4 {[%clk 0:01:02]} 17. Qxd4 {[%clk 0:02:00]}  Qg5 {[%clk 0:01:01]} 18. h4 {[%clk 0:01:53]}  Qf5 {[%clk 0:01:00]} 19. Qd2 {[%clk 0:01:25]}  Ba6 {[%clk 0:00:58]} 20. Kh2 {[%clk 0:01:15]}  h5 {[%clk 0:00:38]} 21. Bh3 {[%clk 0:01:13]}  Qf3 {[%clk 0:00:38]} 22. Bg2 {[%clk 0:01:11]}  Qf5 {[%clk 0:00:37]} 23. Bh3 {[%clk 0:01:01]}  Qf3 {[%clk 0:00:36]} 24. Bg2 {[%clk 0:01:01]}  Qf6 {[%clk 0:00:36]} 25. Kg1 {[%clk 0:00:53]}  Kh7 {[%clk 0:00:35]} 26. Kh2 {[%clk 0:00:52]}  Kh8 {[%clk 0:00:32]} 27. Kg1 {[%clk 0:00:51]}  Kg8 {[%clk 0:00:33]} 28. Kh2 {[%clk 0:00:46]}  Bc4 {[%clk 0:00:30]} 29. Kg1 {[%clk 0:00:41]}  Rad8 {[%clk 0:00:29]} 30. Kh2 {[%clk 0:00:40]}  Qf5 {[%clk 0:00:26]} 31. Bh3 {[%clk 0:00:38]}  Qf3 {[%clk 0:00:22]} 32. Bg2 {[%clk 0:00:38]}  Qf6 {[%clk 0:00:23]} 33. Kg1 {[%clk 0:00:38]}  Re5 {[%clk 0:00:22]} 34. Rxe5 {[%clk 0:00:36]}  dxe5 {[%clk 0:00:23]} 35. b3 {[%clk 0:00:30]}  Bxb3 {[%clk 0:00:16]} 36. cxb3 {[%clk 0:00:30]}  Nxb3 {[%clk 0:00:16]} 37. Qb2 {[%clk 0:00:30]}  Nxa1 {[%clk 0:00:16]} 38. Qxa1 {[%clk 0:00:31]}  e4 {[%clk 0:00:17]} 39. Bxe4 {[%clk 0:00:28]}  Re8 {[%clk 0:00:17]} 40. Bg2 {[%clk 0:00:22]}  Re2 {[%clk 0:00:16]} 41. Qf1 {[%clk 0:00:14]}  Rc2 {[%clk 0:00:16]} 42. Ne4 {[%clk 0:00:13]}  Qd4 {[%clk 0:00:17]} 43. d6 {[%clk 0:00:12]}  cxd6 {[%clk 0:00:18]} 44. Qb5 {[%clk 0:00:11]}  d5 {[%clk 0:00:15]} 45. Qe8+ {[%clk 0:00:11]}  Kg7 {[%clk 0:00:16]} 46. Ng5 {[%clk 0:00:11]}  Qxf2+ {[%clk 0:00:16]} 47. Kh2 {[%clk 0:00:12]}  Qxg2# {[%clk 0:00:16]} 0-1


[Site "https://www.chess.com"]

[Event "Titled Tuesday Blitz August 08 Early 2023"]
[White "Hulka, Valentyn"]
[Black "Willy, Stephen"]
[WhiteFideId "34107061"]
[BlackFideId "30981468"]
[WhiteElo "2719"]
[BlackElo "2505"]
[Result "1-0"]
[Round "5"]
[TimeControl "180+1"]
[Date "2023.08.08"]
[WhiteClock "0:00:07"]
[BlackClock "0:00:02"]
[Board "101"]

1. e4 {[%clk 0:02:58]}  d6 {[%clk 0:02:58]} 2. d4 {[%clk 0:02:58]}  Nf6 {[%clk 0:02:58]} 3. Nc3 {[%clk 0:02:59]}  g6 {[%clk 0:02:58]} 4. Nf3 {[%clk 0:02:58]}  Bg7 {[%clk 0:02:58]} 5. Be3 {[%clk 0:02:59]}  c6 {[%clk 0:02:40]} 6. Qd2 {[%clk 0:02:58]}  h6 {[%clk 0:02:38]} 7. h3 {[%clk 0:02:53]}  b5 {[%clk 0:02:37]} 8. Bd3 {[%clk 0:02:47]}  a5 {[%clk 0:02:35]} 9. a4 {[%clk 0:02:42]}  b4 {[%clk 0:02:34]} 10. Ne2 {[%clk 0:02:42]}  Ba6 {[%clk 0:02:33]} 11. O-O {[%clk 0:02:33]}  Nbd7 {[%clk 0:02:27]} 12. e5 {[%clk 0:02:29]}  Nd5 {[%clk 0:02:05]} 13. e6 {[%clk 0:02:25]}  N7f6 {[%clk 0:01:59]} 14. exf7+ {[%clk 0:02:24]}  Kxf7 {[%clk 0:02:00]} 15. Rfe1 {[%clk 0:02:11]}  Nxe3 {[%clk 0:01:58]} 16. fxe3 {[%clk 0:02:01]}  Re8 {[%clk 0:01:50]} 17. Nf4 {[%clk 0:01:56]}  Kg8 {[%clk 0:01:29]} 18. Bxg6 {[%clk 0:01:46]}  e5 {[%clk 0:01:25]} 19. Bxe8 {[%clk 0:01:44]}  Qxe8 {[%clk 0:01:25]} 20. Ne2 {[%clk 0:01:31]}  Ne4 {[%clk 0:01:10]} 21. Qd1 {[%clk 0:01:27]}  Rd8 {[%clk 0:01:04]} 22. c3 {[%clk 0:01:15]}  c5 {[%clk 0:00:59]} 23. Qc2 {[%clk 0:01:08]}  Nf6 {[%clk 0:00:57]} 24. dxe5 {[%clk 0:01:02]}  dxe5 {[%clk 0:00:57]} 25. Rad1 {[%clk 0:00:50]}  e4 {[%clk 0:00:54]} 26. Rxd8 {[%clk 0:00:34]}  Qxd8 {[%clk 0:00:55]} 27. Rd1 {[%clk 0:00:34]}  Bd3 {[%clk 0:00:53]} 28. Ne5 {[%clk 0:00:30]}  Nd5 {[%clk 0:00:34]} 29. Rxd3 {[%clk 0:00:19]}  exd3 {[%clk 0:00:33]} 30. Qxd3 {[%clk 0:00:20]}  Bxe5 {[%clk 0:00:33]} 31. e4 {[%clk 0:00:20]}  Qd7 {[%clk 0:00:22]} 32. exd5 {[%clk 0:00:17]}  Qxa4 {[%clk 0:00:20]} 33. Qg6+ {[%clk 0:00:16]}  Bg7 {[%clk 0:00:20]} 34. Nf4 {[%clk 0:00:15]}  Qd7 {[%clk 0:00:16]} 35. Nh5 {[%clk 0:00:10]}  Qf7 {[%clk 0:00:14]} 36. Qg4 {[%clk 0:00:04]}  Kh7 {[%clk 0:00:08]} 37. d6 {[%clk 0:00:02]}  Bf8 {[%clk 0:00:06]} 38. d7 {[%clk 0:00:02]}  Be7 {[%clk 0:00:06]} 39. Qe4+ {[%clk 0:00:03]}  Kg8 {[%clk 0:00:05]} 40. Nf4 {[%clk 0:00:03]}  Kf8 {[%clk 0:00:04]} 41. Ng6+ {[%clk 0:00:03]}  Kg7 {[%clk 0:00:04]} 42. Nxe7 {[%clk 0:00:03]}  Qf8 {[%clk 0:00:03]} 43. Qe5+ {[%clk 0:00:03]}  Kf7 {[%clk 0:00:03]} 44. Nf5 {[%clk 0:00:02]}  Qd8 {[%clk 0:00:03]} 45. Nd6+ {[%clk 0:00:02]}  Kf8 {[%clk 0:00:02]} 46. Qe8+ {[%clk 0:00:03]}  Kg7 {[%clk 0:00:02]} 47. Qxd8 {[%clk 0:00:04]}  a4 {[%clk 0:00:03]} 48. Qe7+ {[%clk 0:00:05]}  Kg6 {[%clk 0:00:03]} 49. d8=Q {[%clk 0:00:05]}  Kh5 {[%clk 0:00:03]} 50. Qg8 {[%clk 0:00:05]}  a3 {[%clk 0:00:02]} 51. Qe5+ {[%clk 0:00:06]}  Kh4 {[%clk 0:00:02]} 52. Qg4# {[%clk 0:00:07]} 1-0


[Site "https://www.chess.com"]

[Event "Titled Tuesday Blitz August 08 Early 2023"]
[White "Djordjevic, Vuk"]
[Black "Shubenkova, Veronika"]
[WhiteFideId "902098"]
[BlackFideId "44124040"]
[WhiteElo "2714"]
[BlackElo "2503"]
[Result "0-1"]
[Round "5"]
[TimeControl "180+1"]
[Date "2023.08.08"]
[WhiteClock "0:00:00"]
[BlackClock "0:01:52"]
[Board "102"]

1. d4 {[%clk 0:03:00]}  d5 {[%clk 0:02:59]} 2. Bf4 {[%clk 0:03:01]}  e6 {[%clk 0:02:59]} 3. e3 {[%clk 0:03:01]}  Bd6 {[%clk 0:03:00]} 4. Bg3 {[%clk 0:03:01]}  f5 {[%clk 0:03:00]} 5. Nd2 {[%clk 0:03:01]}  Nf6 {[%clk 0:03:00]} 6. Ngf3 {[%clk 0:03:01]}  O-O {[%clk 0:03:01]} 7. c4 {[%clk 0:03:02]}  c6 {[%clk 0:03:01]} 8. c5 {[%clk 0:03:02]}  Bc7 {[%clk 0:03:01]} 9. Bxc7 {[%clk 0:03:00]}  Qxc7 {[%clk 0:03:01]} 10. Ne5 {[%clk 0:03:01]}  Nbd7 {[%clk 0:03:02]} 11. f4 {[%clk 0:03:02]}  Nxe5 {[%clk 0:03:02]} 12. fxe5 {[%clk 0:03:01]}  Ne4 {[%clk 0:03:03]} 13. Bd3 {[%clk 0:02:56]}  Qa5 {[%clk 0:03:01]} 14. Bxe4 {[%clk 0:02:52]}  fxe4 {[%clk 0:03:00]} 15. a3 {[%clk 0:02:53]}  b6 {[%clk 0:02:55]} 16. Rc1 {[%clk 0:02:14]}  Ba6 {[%clk 0:02:54]} 17. cxb6 {[%clk 0:02:13]}  Qxb6 {[%clk 0:02:46]} 18. b4 {[%clk 0:02:04]}  Rf5 {[%clk 0:02:42]} 19. Nf1 {[%clk 0:01:54]}  Raf8 {[%clk 0:02:40]} 20. Ng3 {[%clk 0:01:53]}  Rf2 {[%clk 0:02:39]} 21. Rc2 {[%clk 0:01:53]}  R2f7 {[%clk 0:02:23]} 22. Qg4 {[%clk 0:01:05]}  Qb5 {[%clk 0:02:17]} 23. Rc3 {[%clk 0:01:04]}  Kh8 {[%clk 0:02:13]} 24. Kd1 {[%clk 0:00:07]}  Qa4+ {[%clk 0:02:04]} 25. Kc1 {[%clk 0:00:07]}  Bd3 {[%clk 0:01:58]} 26. Nh5 {[%clk 0:00:03]}  a5 {[%clk 0:01:56]} 27. bxa5 {[%clk 0:00:00]}  Rb7 {[%clk 0:01:52]} 0-1


[Site "https://www.chess.com"]

[Event "Titled Tuesday Blitz August 08 Early 2023"]
[White "Shishkov, Andrei"]
[Black "Timmermans, Mark"]
[WhiteFideId "4500563"]
[BlackFideId "1026399"]
[WhiteElo "2501"]
[BlackElo "2713"]
[Result "0-1"]
[Round "5"]
[TimeControl "180+1"]
[Date "2023.08.08"]
[WhiteClock "0:00:09"]
[BlackClock "0:00:20"]
[Board "103"]

1. d4 {[%clk 0:03:00]}  Nf6 {[%clk 0:03:00]} 2. c4 {[%clk 0:03:01]}  e6 {[%clk 0:02:59]} 3. Nc3 {[%clk 0:03:01]}  Bb4 {[%clk 0:02:57]} 4. Qc2 {[%clk 0:03:02]}  O-O {[%clk 0:02:56]} 5. e4 {[%clk 0:03:01]}  d5 {[%clk 0:02:56]} 6. e5 {[%clk 0:03:01]}  Ne4 {[%clk 0:02:56]} 7. Bd3 {[%clk 0:03:02]}  f5 {[%clk 0:02:56]} 8. exf6 {[%clk 0:03:02]}  Nxf6 {[%clk 0:02:55]} 9. Nf3 {[%clk 0:03:01]}  Nc6 {[%clk 0:02:46]} 10. O-O {[%clk 0:02:58]}  h6 {[%clk 0:02:37]} 11. a3 {[%clk 0:02:43]}  Bxc3 {[%clk 0:02:36]} 12. bxc3 {[%clk 0:02:44]}  Bd7 {[%clk 0:02:22]} 13. Re1 {[%clk 0:02:11]}  b6 {[%clk 0:02:13]} 14. h3 {[%clk 0:01:52]}  Na5 {[%clk 0:01:48]} 15. Ne5 {[%clk 0:01:39]}  dxc4 {[%clk 0:01:45]} 16. Nxc4 {[%clk 0:01:39]}  Nxc4 {[%clk 0:01:39]} 17. Bxc4 {[%clk 0:01:40]}  Nd5 {[%clk 0:01:40]} 18. Bd2 {[%clk 0:01:29]}  Qf6 {[%clk 0:01:37]} 19. f3 {[%clk 0:01:23]}  Rae8 {[%clk 0:01:34]} 20. Qe4 {[%clk 0:01:22]}  Qf7 {[%clk 0:01:24]} 21. Re2 {[%clk 0:01:18]}  Nf4 {[%clk 0:00:53]} 22. Bxf4 {[%clk 0:01:14]}  Qxf4 {[%clk 0:00:54]} 23. Qxf4 {[%clk 0:01:06]}  Rxf4 {[%clk 0:00:55]} 24. Rae1 {[%clk 0:01:06]}  Kf7 {[%clk 0:00:51]} 25. Kf2 {[%clk 0:01:00]}  Rf6 {[%clk 0:00:45]} 26. Re5 {[%clk 0:00:56]}  g5 {[%clk 0:00:32]} 27. Kg3 {[%clk 0:00:50]}  Bc6 {[%clk 0:00:22]} 28. d5 {[%clk 0:00:35]}  exd5 {[%clk 0:00:22]} 29. Bxd5+ {[%clk 0:00:34]}  Kf8 {[%clk 0:00:23]} 30. Rxe8+ {[%clk 0:00:17]}  Bxe8 {[%clk 0:00:24]} 31. Re5 {[%clk 0:00:16]}  Bd7 {[%clk 0:00:24]} 32. Kf2 {[%clk 0:00:16]}  Rd6 {[%clk 0:00:24]} 33. Ke3 {[%clk 0:00:14]}  c6 {[%clk 0:00:24]} 34. Be4 {[%clk 0:00:14]}  Rd1 {[%clk 0:00:24]} 35. g4 {[%clk 0:00:13]}  Ra1 {[%clk 0:00:23]} 36. Kd4 {[%clk 0:00:11]}  Rxa3 {[%clk 0:00:23]} 37. Bf5 {[%clk 0:00:11]}  Be8 {[%clk 0:00:23]} 38. Re6 {[%clk 0:00:11]}  c5+ {[%clk 0:00:23]} 39. Kd3 {[%clk 0:00:10]}  Bb5+ {[%clk 0:00:21]} 40. Kd2 {[%clk 0:00:09]}  Ra2+ {[%clk 0:00:21]} 41. Ke3 {[%clk 0:00:09]}  Re2# {[%clk 0:00:20]} 0-1


[Site "https://www.chess.com"]

[Event "Titled Tuesday Blitz August 08 Early 2023"]
[White "KarolKacprzak"]
[Black "Garakov, Mikhael"]
[BlackFideId "4169034"]
[WhiteElo "2685"]
[BlackElo "2499"]
[Result "1-0"]
[Round "5"]
[TimeControl "180+1"]
[Date "2023.08.08"]
[WhiteClock "0:01:46"]
[BlackClock "0:00:00"]
[Board "104"]

1. e4 {[%clk 0:03:00]}  c5 {[%clk 0:02:59]} 2. c3 {[%clk 0:03:00]}  d6 {[%clk 0:02:56]} 3. d4 {[%clk 0:03:00]}  Nf6 {[%clk 0:02:53]} 4. Bd3 {[%clk 0:02:55]}  Nc6 {[%clk 0:02:52]} 5. Nf3 {[%clk 0:02:55]}  Bg4 {[%clk 0:02:50]} 6. d5 {[%clk 0:02:52]}  Bxf3 {[%clk 0:02:42]} 7. Qxf3 {[%clk 0:02:52]}  Ne5 {[%clk 0:02:42]} 8. Bb5+ {[%clk 0:02:53]}  Nfd7 {[%clk 0:02:43]} 9. Qg3 {[%clk 0:02:47]}  a6 {[%clk 0:02:38]} 10. Be2 {[%clk 0:02:47]}  Nf6 {[%clk 0:02:36]} 11. f4 {[%clk 0:02:46]}  Ned7 {[%clk 0:02:17]} 12. Nd2 {[%clk 0:02:47]}  b5 {[%clk 0:02:12]} 13. O-O {[%clk 0:02:45]}  Qc7 {[%clk 0:02:07]} 14. b3 {[%clk 0:02:42]}  g6 {[%clk 0:02:03]} 15. Bb2 {[%clk 0:02:36]}  Bg7 {[%clk 0:02:03]} 16. Rab1 {[%clk 0:02:29]}  O-O {[%clk 0:02:03]} 17. c4 {[%clk 0:02:29]}  bxc4 {[%clk 0:01:59]} 18. Bxc4 {[%clk 0:02:30]}  a5 {[%clk 0:01:52]} 19. a4 {[%clk 0:02:23]}  Nb6 {[%clk 0:01:27]} 20. Bb5 {[%clk 0:02:23]}  e6 {[%clk 0:01:13]} 21. dxe6 {[%clk 0:02:21]}  fxe6 {[%clk 0:01:14]} 22. Qd3 {[%clk 0:02:11]}  d5 {[%clk 0:01:11]} 23. Be5 {[%clk 0:02:09]}  Qb7 {[%clk 0:01:07]} 24. Rbc1 {[%clk 0:02:03]}  Rad8 {[%clk 0:01:00]} 25. Qh3 {[%clk 0:01:53]}  Qc8 {[%clk 0:00:53]} 26. Rfe1 {[%clk 0:01:47]}  dxe4 {[%clk 0:00:26]} 27. Bxf6 {[%clk 0:01:47]}  Bxf6 {[%clk 0:00:26]} 28. Nxe4 {[%clk 0:01:48]}  Bd4+ {[%clk 0:00:26]} 29. Kh1 {[%clk 0:01:48]}  Nd5 {[%clk 0:00:25]} 30. Ng5 {[%clk 0:01:48]}  Qb7 {[%clk 0:00:17]} 31. Qxe6+ {[%clk 0:01:47]}  Kh8 {[%clk 0:00:00]} 32. Bc6 {[%clk 0:01:46]} 1-0


[Site "https://www.chess.com"]

[Event "Titled Tuesday Blitz August 08 Early 2023"]
[White "Malka, Samuel"]
[Black "Agibileg, Uurtsaikh"]
[WhiteFideId "20643675"]
[BlackFideId "4901606"]
[WhiteElo "2499"]
[BlackElo "2679"]
[Result "0-1"]
[Round "5"]
[TimeControl "180+1"]
[Date "2023.08.08"]
[WhiteClock "0:00:08"]
[BlackClock "0:00:47"]
[Board "105"]

1. d4 {[%clk 0:03:00]}  Nf6 {[%clk 0:02:59]} 2. c4 {[%clk 0:03:01]}  g6 {[%clk 0:02:59]} 3. Nc3 {[%clk 0:03:00]}  Bg7 {[%clk 0:02:59]} 4. e4 {[%clk 0:03:01]}  d6 {[%clk 0:02:59]} 5. Nf3 {[%clk 0:03:02]}  O-O {[%clk 0:03:00]} 6. Be2 {[%clk 0:03:02]}  e5 {[%clk 0:03:00]} 7. O-O {[%clk 0:03:03]}  Nc6 {[%clk 0:03:00]} 8. d5 {[%clk 0:03:03]}  Ne7 {[%clk 0:03:00]} 9. Ne1 {[%clk 0:03:03]}  Nd7 {[%clk 0:02:57]} 10. Nd3 {[%clk 0:03:04]}  f5 {[%clk 0:02:55]} 11. f3 {[%clk 0:03:04]}  c5 {[%clk 0:02:50]} 12. Be3 {[%clk 0:02:52]}  f4 {[%clk 0:02:48]} 13. Bf2 {[%clk 0:02:52]}  g5 {[%clk 0:02:48]} 14. a3 {[%clk 0:02:47]}  Ng6 {[%clk 0:02:47]} 15. b4 {[%clk 0:02:46]}  b6 {[%clk 0:02:48]} 16. Na4 {[%clk 0:02:41]}  h5 {[%clk 0:02:47]} 17. bxc5 {[%clk 0:02:42]}  bxc5 {[%clk 0:02:47]} 18. Naxc5 {[%clk 0:02:42]}  dxc5 {[%clk 0:02:46]} 19. Nxc5 {[%clk 0:02:43]}  Nf6 {[%clk 0:02:46]} 20. Nd3 {[%clk 0:02:33]}  g4 {[%clk 0:02:46]} 21. Kh1 {[%clk 0:02:15]}  g3 {[%clk 0:02:46]} 22. Bg1 {[%clk 0:02:15]}  Nh4 {[%clk 0:02:44]} 23. Re1 {[%clk 0:02:02]}  Nh7 {[%clk 0:02:37]} 24. Bf1 {[%clk 0:01:46]}  Ng5 {[%clk 0:02:36]} 25. c5 {[%clk 0:01:28]}  Rf6 {[%clk 0:01:30]} 26. Ra2 {[%clk 0:01:27]}  Rg6 {[%clk 0:01:30]} 27. c6 {[%clk 0:01:20]}  Rb8 {[%clk 0:01:13]} 28. Bxa7 {[%clk 0:01:11]}  Rb5 {[%clk 0:01:10]} 29. Nxf4 {[%clk 0:01:06]}  exf4 {[%clk 0:01:06]} 30. Bxb5 {[%clk 0:01:05]}  Ngxf3 {[%clk 0:01:04]} 31. gxf3 {[%clk 0:01:02]}  g2+ {[%clk 0:01:04]} 32. Kg1 {[%clk 0:01:01]}  Qa5 {[%clk 0:01:03]} 33. Bf2 {[%clk 0:00:55]}  Bd4 {[%clk 0:00:54]} 34. Bxd4 {[%clk 0:00:25]}  Nxf3+ {[%clk 0:00:52]} 35. Kf2 {[%clk 0:00:21]}  Nxe1 {[%clk 0:00:50]} 36. Ke2 {[%clk 0:00:12]}  Qxb5+ {[%clk 0:00:47]} 37. Kxe1 {[%clk 0:00:11]}  g1=Q+ {[%clk 0:00:47]} 38. Bxg1 {[%clk 0:00:11]}  Rxg1+ {[%clk 0:00:47]} 39. Kd2 {[%clk 0:00:12]}  Rxd1+ {[%clk 0:00:46]} 40. Kxd1 {[%clk 0:00:08]}  Qb1+ {[%clk 0:00:47]} 0-1


[Site "https://www.chess.com"]